bitfinex/quotes_BTCUSD_20220205
["timestamp","ask_amount","ask_price","bid_price","bid_amount"]
[1644055222704,0.94519418,41563.0,41562.0,0.18665016]
[1644055223009,1.04519418,41563.0,41562.0,0.18665016]
[1644055223203,1.04519418,41563.0,41562.0,0.02729034]
[1644055223603,1.04519418,41563.0,41560.0,0.00075753]
[1644055223803,0.331772,41562.0,41560.0,0.00075753]
[1644055224004,0.60652512,41561.0,41560.0,0.00075753]
[1644055224206,0.60652512,41561.0,41554.0,0.05]
[1644055224407,0.60652512,41561.0,41558.0,0.00073023]
[1644055224408,0.331772,41560.0,41558.0,0.00073023]
[1644055224604,0.08018346,41553.0,41552.0,0.45274563]
[1644055224805,0.27475312,41561.0,41552.0,0.51289863]
[1644055225003,0.06576434,41556.0,41552.0,0.51289863]
[1644055225206,0.06576434,41556.0,41553.0,0.004879]
[1644055225405,0.27475312,41561.0,41553.0,0.004879]
[1644055225612,0.44644932,41563.0,41553.0,0.20549001]
[1644055225613,0.28044611,41562.0,41553.0,0.20549001]
[1644055225806,0.28044611,41562.0,41552.0,0.26564301]
[1644055226006,0.28044611,41562.0,41550.0,0.20549001]
[1644055226453,0.08796937,41554.0,41552.0,0.20549001]
[1644055226653,0.08796937,41554.0,41550.0,0.20549001]
[1644055226852,0.08796937,41554.0,41551.0,0.004883]
[1644055227557,0.18796937,41554.0,41545.0,0.20549001]
[1644055227758,0.19752065,41548.0,41544.0,0.20549001]
[1644055228156,0.34813941,41554.0,41547.0,0.00077858]
[1644055228653,0.25529508,41554.0,41547.0,0.00077858]
[1644055228855,0.53796937,41554.0,41549.0,0.02729034]
[1644055229156,0.331772,41553.0,41549.0,0.02729034]
[1644055229353,0.20626091,41551.0,41549.0,0.02729034]
[1644055229555,0.59340323,41550.0,41549.0,0.02729034]
[1644055229753,0.331772,41550.0,41549.0,0.02729034]
[1644055230203,0.26006385,41550.0,41549.0,0.02729034]
[1644055230403,0.59183585,41550.0,41549.0,0.02729034]
[1644055230597,0.64183585,41550.0,41549.0,0.02729034]
[1644055230804,0.74183585,41550.0,41549.0,0.02729034]
[1644055231399,0.9394175,41550.0,41549.0,0.02729034]
[1644055231802,0.75,41549.0,41547.0,0.00050061]
[1644055232002,0.679972,41548.0,41547.0,0.00050061]
[1644055232204,0.729972,41548.0,41547.0,0.00050061]
[1644055232402,0.829972,41548.0,41547.0,0.00050061]
[1644055232803,0.0677957,41538.0,41536.0,0.01916503]
[1644055233006,0.0482,41543.0,41536.0,0.01916503]
[1644055233203,0.0482,41543.0,41533.0,0.20587974]
[1644055233204,0.25,41542.0,41533.0,0.20587974]
[1644055233406,0.0482,41543.0,41535.0,0.25001231]
[1644055233407,0.04999999,41536.0,41535.0,0.25001231]
[1644055233603,0.04999999,41536.0,41532.0,0.20587974]
[1644055234049,0.04999999,41536.0,41532.0,0.20669777]
[1644055234449,0.12156721,41536.0,41532.0,0.20669777]
[1644055234650,0.07156722,41536.0,41532.0,0.20669777]
[1644055234850,0.07156722,41536.0,41532.0,0.00081803]
[1644055234851,0.04999999,41533.0,41532.0,0.00081803]
[1644055235049,0.04999999,41533.0,41530.0,0.20587974]
[1644055235250,0.04999999,41532.0,41531.0,0.004911]
[1644055235451,0.07156722,41536.0,41531.0,0.004911]
[1644055235648,0.06916502,41537.0,41531.0,0.2248083]
[1644055236650,0.06916502,41537.0,41532.0,0.00080544]
[1644055237702,0.27135193,41536.0,41531.0,0.2248083]
[1644055237901,0.26009212,41536.0,41531.0,0.2248083]
[1644055238104,0.25015144,41534.0,41528.0,0.20587974]
[1644055238308,0.25015144,41534.0,41526.0,0.05]
[1644055238309,0.3,41533.0,41526.0,0.05]
[1644055238504,0.04999999,41527.0,41526.0,0.05]
[1644055239103,0.25756302,41527.0,41526.0,0.05]
[1644055239302,0.33507103,41527.0,41526.0,0.05]
[1644055239707,0.66684303,41527.0,41526.0,0.05]
[1644055239904,0.81504303,41527.0,41526.0,0.05]
[1644055240505,1.12383379,41527.0,41526.0,0.05]
[1644055240809,0.04999999,41527.0,41526.0,0.05]
[1644055241007,0.22237363,41527.0,41526.0,0.054926]
[1644055241207,0.22237363,41527.0,41526.0,0.05]
[1644055241649,0.22237363,41527.0,41526.0,0.09999999]
[1644055241850,0.22237363,41527.0,41526.0,0.10492599]
[1644055242052,0.22237363,41527.0,41526.0,0.09999999]
[1644055242749,0.22237363,41527.0,41526.0,0.33179539]
[1644055243150,0.22237363,41527.0,41526.0,0.054926]
[1644055243349,0.22237363,41527.0,41526.0,0.09999999]
[1644055243755,0.12278471,41527.0,41526.0,0.41471607]
[1644055243953,0.02187244,41532.0,41527.0,0.75]
[1644055244150,0.02187244,41532.0,41531.0,0.05491799]
[1644055244353,0.02187244,41532.0,41531.0,0.40311799]
[1644055244550,0.123,41552.0,41537.0,0.27288061]
[1644055244850,0.32337715,41548.0,41541.0,0.04999999]
[1644055245114,0.25015065,41548.0,41541.0,0.04999999]
[1644055245311,0.123,41552.0,41541.0,0.04999999]
[1644055245713,0.06017,41555.0,41541.0,0.04999999]
[1644055245913,0.120335,41559.0,41545.0,0.04999999]
[1644055246214,0.060162,41560.0,41546.0,0.0007982]
[1644055246215,0.02004361,41552.0,41546.0,0.0007982]
[1644055246420,0.22572715,41552.0,41546.0,0.0007982]
[1644055246613,0.331772,41551.0,41546.0,0.0007982]
[1644055247211,0.22572715,41552.0,41545.0,0.23878726]
[1644055247412,0.22572715,41552.0,41546.0,0.00079819]
[1644055247613,0.02004361,41552.0,41546.0,0.00079819]
[1644055248315,0.03913626,41552.0,41545.0,0.23878726]
[1644055248513,0.01909265,41552.0,41547.0,0.00079818]
[1644055249551,0.01909265,41552.0,41545.0,0.23878726]
[1644055249751,0.01909265,41552.0,41547.0,0.00077433]
[1644055250753,0.19970366,41548.0,41545.0,0.23878726]
[1644055250953,0.19970366,41548.0,41547.0,0.00077433]
[1644055251154,0.53147566,41548.0,41547.0,0.00077433]
[1644055251951,0.53147566,41548.0,41539.0,0.0482]
[1644055252154,0.53147566,41548.0,41542.0,0.2092393]
[1644055252155,0.07913637,41543.0,41542.0,0.2092393]
[1644055252353,0.19970366,41548.0,41543.0,0.45]
[1644055252801,0.19970366,41548.0,41539.0,0.0482]
[1644055253000,0.08143746,41552.0,41539.0,0.0482]
[1644055253300,0.0696093,41552.0,41546.0,0.21781442]
[1644055253500,0.24,41548.0,41546.0,0.21781442]
[1644055253700,0.24,41548.0,41541.0,0.00077601]
[1644055254500,0.24,41548.0,41541.0,0.04999999]
[1644055254702,0.24,41548.0,41547.0,0.04999999]
[1644055255705,0.3105806,41548.0,41547.0,0.04999999]
[1644055256549,0.3105806,41548.0,41545.0,0.00077596]
[1644055256752,0.3105806,41548.0,41541.0,0.04999999]
[1644055256950,0.3105806,41548.0,41544.0,0.00077586]
[1644055257951,0.3105806,41548.0,41541.0,0.25587973]
[1644055258149,0.24,41548.0,41541.0,0.25587973]
[1644055258350,0.24,41548.0,41544.0,0.00077587]
[1644055259152,0.30626336,41548.0,41544.0,0.00077587]
[1644055259356,0.30626336,41548.0,41542.0,0.4465561]
[1644055259555,0.30626336,41548.0,41544.0,0.00077587]
[1644055260398,0.30626336,41548.0,41541.0,0.25587973]
[1644055260600,0.30626336,41548.0,41544.0,0.00077588]
[1644055260898,0.28126336,41548.0,41544.0,0.00077588]
[1644055261701,0.28126336,41548.0,41542.0,0.20587974]
[1644055261903,0.28126336,41548.0,41544.0,0.00077588]
[1644055262902,0.28126336,41548.0,41542.0,0.20587974]
[1644055263103,0.215,41548.0,41544.0,0.00077588]
[1644055263704,0.215,41548.0,41544.0,0.05077587]
[1644055263951,0.215,41548.0,41544.0,0.00077588]
[1644055264150,0.215,41548.0,41543.0,0.20587974]
[1644055264350,0.215,41548.0,41544.0,0.00077588]
[1644055265151,0.215,41548.0,41544.0,0.05077587]
[1644055265351,0.215,41548.0,41544.0,0.04999999]
[1644055265554,0.215,41548.0,41544.0,0.05077587]
[1644055267352,0.215,41548.0,41544.0,0.25665561]
[1644055267605,0.215,41548.0,41544.0,0.25587973]
[1644055267800,0.21485885,41548.0,41544.0,0.25665561]
[1644055268800,0.21485885,41548.0,41544.0,0.25587973]
[1644055269000,0.21485885,41548.0,41544.0,0.25665561]
[1644055270001,0.21485885,41548.0,41544.0,0.25587973]
[1644055270202,0.21485885,41548.0,41544.0,0.25665561]
[1644055271103,0.21485885,41548.0,41545.0,0.20587974]
[1644055272556,0.22970268,41550.0,41545.0,0.20587974]
[1644055273952,0.22970268,41550.0,41545.0,0.2066556]
[1644055274453,0.22970268,41550.0,41546.0,0.20587974]
[1644055275109,0.22970268,41550.0,41546.0,0.20665559]
[1644055275301,0.46970268,41550.0,41546.0,0.20665559]
[1644055276103,0.46970268,41550.0,41546.0,0.20587974]
[1644055276304,0.46970268,41550.0,41546.0,0.20665559]
[1644055276506,0.05,41549.0,41546.0,0.00077585]
[1644055276705,0.391954,41548.0,41546.0,0.00077585]
[1644055276905,0.060182,41548.0,41546.0,0.00077585]
[1644055277307,0.060182,41548.0,41541.0,0.20587974]
[1644055277505,0.2900777,41547.0,41545.0,0.00077586]
[1644055277709,0.3900777,41547.0,41545.0,0.00077586]
[1644055278006,0.4900777,41547.0,41545.0,0.00077586]
[1644055278406,0.331772,41546.0,41541.0,0.20587974]
[1644055278607,0.4900777,41547.0,41544.0,0.00075323]
[1644055278857,0.5502607,41547.0,41544.0,0.00075323]
[1644055279459,0.35,41546.0,41541.0,0.19697109]
[1644055279660,0.5502607,41547.0,41538.0,0.25722263]
[1644055279859,0.20969926,41539.0,41538.0,0.25722263]
[1644055280061,0.20969926,41539.0,41537.0,0.25722263]
[1644055281362,0.20969926,41539.0,41536.0,0.0001793]
[1644055281562,0.20969926,41539.0,41535.0,0.0001793]
[1644055281761,0.20969926,41539.0,41533.0,0.52988956]
[1644055281961,0.20969926,41539.0,41534.0,0.0001793]
[1644055282161,0.20969926,41539.0,41533.0,0.25722263]
[1644055282362,0.08866088,41538.0,41534.0,0.00081713]
[1644055283207,0.08866088,41538.0,41532.0,0.0001793]
[1644055283505,0.40969926,41539.0,41534.0,0.00081713]
[1644055283506,0.08764366,41535.0,41534.0,0.00081713]
[1644055284506,0.08764366,41535.0,41533.0,0.0001793]
[1644055284707,0.08764366,41535.0,41534.0,0.25722263]
[1644055284906,0.08764366,41535.0,41532.0,0.25803978]
[1644055285106,0.08764366,41535.0,41533.0,0.25722263]
[1644055285707,0.060194,41537.0,41533.0,0.25722263]
[1644055285907,0.060194,41537.0,41533.0,0.25740193]
[1644055286354,0.060194,41537.0,41533.0,0.0001793]
[1644055286556,0.24,41535.0,41532.0,0.25803979]
[1644055286955,0.24,41535.0,41532.0,0.25722263]
[1644055287455,0.24,41535.0,41532.0,0.25740193]
[1644055287456,0.33830334,41534.0,41532.0,0.25740193]
[1644055287655,0.27471623,41533.0,41532.0,0.25722263]
[1644055287858,0.27471623,41533.0,41531.0,0.25821909]
[1644055288056,0.27471623,41533.0,41531.0,0.25722263]
[1644055288256,0.27471623,41533.0,41532.0,0.25722263]
[1644055289456,0.27471623,41533.0,41531.0,0.25740193]
[1644055289657,0.27471623,41533.0,41531.0,0.25722263]
[1644055289864,0.49511923,41533.0,41530.0,0.00099648]
[1644055290113,0.331772,41532.0,41530.0,0.00099648]
[1644055290310,0.71557306,41531.0,41530.0,0.00081718]
[1644055290513,0.76557306,41531.0,41527.0,0.0001793]
[1644055290709,0.47005417,41530.0,41529.0,0.00081719]
[1644055290909,0.88598956,41530.0,41529.0,0.00081719]
[1644055291108,0.93598956,41530.0,41529.0,0.00081719]
[1644055291310,1.01450135,41530.0,41529.0,0.00081719]
[1644055291510,1.16450135,41530.0,41521.0,0.37867204]
[1644055291714,0.75,41527.0,41521.0,0.02]
[1644055291915,0.691992,41526.0,41521.0,0.02]
[1644055292113,0.441996,41525.0,41521.0,0.02]
[1644055292313,0.379972,41524.0,41521.0,0.02]
[1644055292814,0.331772,41524.0,41522.0,0.20621064]
[1644055293017,0.02188746,41534.0,41521.0,0.14229806]
[1644055293018,0.060203,41526.0,41521.0,0.14229806]
[1644055293512,0.060203,41526.0,41524.0,0.04999999]
[1644055293855,0.060203,41526.0,41521.0,0.09229807]
[1644055294457,0.3,41528.0,41521.0,0.09311284]
[1644055294656,0.060199,41530.0,41521.0,0.09311284]
[1644055294857,0.331787,41529.0,41524.0,0.04999999]
[1644055295058,0.060199,41530.0,41524.0,0.04999999]
[1644055295257,0.331787,41529.0,41527.0,0.26022339]
[1644055295457,0.306787,41529.0,41527.0,0.26022339]
[1644055295661,0.306787,41529.0,41525.0,0.00081473]
[1644055296259,0.305997,41529.0,41525.0,0.00081473]
[1644055296661,0.305997,41529.0,41526.0,0.25539926]
[1644055297160,0.060199,41530.0,41526.0,0.25539926]
[1644055297608,0.24,41529.0,41526.0,0.25539926]
[1644055297903,0.24,41529.0,41526.0,0.25616647]
[1644055298903,0.24,41529.0,41526.0,0.25539926]
[1644055299104,0.24,41529.0,41528.0,0.04999999]
[1644055299506,0.24,41529.0,41528.0,0.09819999]
[1644055301357,0.24,41529.0,41528.0,0.0482]
[1644055302156,0.24,41529.0,41528.0,0.09819999]
[1644055302656,0.24,41529.0,41528.0,0.0482]
[1644055304259,0.24,41529.0,41528.0,0.42997799]
[1644055304559,0.24,41529.0,41528.0,0.38177799]
[1644055307507,0.24,41529.0,41528.0,0.45559399]
[1644055308308,0.24,41529.0,41528.0,0.38177799]
[1644055312454,0.11983028,41547.0,41530.0,0.75]
[1644055312716,0.003,41556.0,41530.0,0.75]
[1644055312717,0.003,41556.0,41545.0,0.75]
[1644055312917,0.003,41556.0,41555.0,0.04999999]
[1644055313115,0.001,41559.0,41555.0,0.04999999]
[1644055313316,0.001,41562.0,41559.0,0.75]
[1644055313520,0.001,41562.0,41560.0,0.5791681]
[1644055313722,0.001,41562.0,41561.0,0.085128]
[1644055313918,0.001,41562.0,41561.0,0.132328]
[1644055314117,0.002,41566.0,41563.0,0.331753]
[1644055314317,0.002,41566.0,41564.0,0.0482]
[1644055314518,0.001,41568.0,41566.0,0.75]
[1644055314719,0.001,41576.0,41568.0,0.75]
[1644055314917,0.001,41576.0,41570.0,0.6029]
[1644055315116,0.001,41576.0,41571.0,0.0482]
[1644055315322,0.001,41576.0,41572.0,0.024984]
[1644055315518,0.001,41576.0,41573.0,0.379864]
[1644055315719,0.001,41576.0,41573.0,0.60666727]
[1644055316016,0.001,41576.0,41573.0,0.69371062]
[1644055316456,0.001,41575.0,41574.0,0.75]
[1644055316658,0.0028944,41577.0,41575.0,0.75]
[1644055316859,0.0028944,41577.0,41576.0,0.0482]
[1644055317058,0.0028944,41577.0,41576.0,0.6814731]
[1644055317257,9.44e-05,41577.0,41576.0,0.7814721]
[1644055318058,0.021,41579.0,41576.0,0.379836]
[1644055318260,0.021,41579.0,41576.0,0.0482]
[1644055318261,0.04999999,41577.0,41576.0,0.0482]
[1644055318462,0.04999999,41577.0,41574.0,0.5]
[1644055318659,0.04999999,41577.0,41575.0,0.0482]
[1644055318861,0.04999999,41577.0,41564.0,0.44486628]
[1644055319058,0.021,41579.0,41565.0,0.24783444]
[1644055319259,0.04999999,41572.0,41567.0,0.06652614]
[1644055319459,0.04999999,41572.0,41569.0,0.27228834]
[1644055320116,0.004,41580.0,41579.0,0.05288902]
[1644055320511,0.335778,41580.0,41579.0,0.05288902]
[1644055320710,0.385778,41580.0,41579.0,0.05288902]
[1644055320910,0.485778,41580.0,41579.0,0.05288902]
[1644055321109,0.18711098,41572.0,41569.0,0.32228833]
[1644055321311,0.18711098,41572.0,41570.0,0.331778]
[1644055321911,0.18711098,41572.0,41565.0,0.00610319]
[1644055322312,0.23711098,41572.0,41564.0,0.04999999]
[1644055322511,0.23711098,41572.0,41561.0,0.24271623]
[1644055322712,0.23711098,41572.0,41564.0,0.04999999]
[1644055323013,0.18711098,41572.0,41563.0,0.23486392]
[1644055323212,0.18711098,41572.0,41568.0,0.04999999]
[1644055324355,0.18711098,41572.0,41571.0,0.0693889]
[1644055325261,0.00326791,41578.0,41571.0,0.41938889]
[1644055325460,0.00481694,41580.0,41571.0,0.41938889]
[1644055325461,0.004,41580.0,41577.0,0.07487199]
[1644055325662,0.02435183,41582.0,41580.0,0.01373162]
[1644055325860,0.02435183,41582.0,41580.0,0.06373161]
[1644055326259,0.02435183,41582.0,41580.0,0.32619139]
[1644055327061,0.00119947,41583.0,41582.0,0.060106]
[1644055327261,0.00119947,41583.0,41582.0,0.391794]
[1644055328009,0.26906477,41589.0,41582.0,0.391794]
[1644055328209,0.26906477,41589.0,41588.0,0.24190597]
[1644055328410,0.26906477,41589.0,41588.0,0.361916]
[1644055328411,0.08366329,41589.0,41588.0,0.361916]
[1644055328613,0.0008016,41598.0,41590.0,0.75]
[1644055328810,0.0008016,41598.0,41593.0,0.75]
[1644055329010,0.004,41602.0,41595.0,0.04999999]
[1644055329216,0.004,41602.0,41598.0,0.04999999]
[1644055329412,0.03684586,41604.0,41601.0,0.75]
[1644055329612,0.02194648,41609.0,41603.0,0.04999999]
[1644055329813,0.00035266,41608.0,41606.0,0.04999999]
[1644055330009,0.00035266,41608.0,41606.0,0.33729516]
[1644055330210,0.003,41610.0,41606.0,0.33532817]
[1644055330511,0.001167,41614.0,41609.0,0.68348658]
[1644055330512,0.00200912,41612.0,41609.0,0.68348658]
[1644055330713,0.48927143,41622.0,41611.0,0.75]
[1644055330714,0.01589007,41619.0,41611.0,0.75]
[1644055330910,0.01589007,41619.0,41612.0,0.07468799]
[1644055330911,0.01624337,41619.0,41612.0,0.07468799]
[1644055331109,0.01624337,41619.0,41615.0,0.04999999]
[1644055331363,0.01624337,41619.0,41616.0,0.60858311]
[1644055331568,0.24,41619.0,41618.0,0.04999999]
[1644055331772,0.24,41619.0,41618.0,0.12288099]
[1644055331773,0.235,41619.0,41618.0,0.12288099]
[1644055331965,0.235,41619.0,41618.0,0.31548521]
[1644055331966,0.1766936,41619.0,41618.0,0.31548521]
[1644055332166,0.02,41629.0,41621.0,1.081489]
[1644055332366,0.02,41629.0,41628.0,0.21384266]
[1644055332564,0.02,41629.0,41628.0,0.38177799]
[1644055332767,0.02,41629.0,41628.0,0.331778]
[1644055332974,0.02,41629.0,41622.0,0.19260422]
[1644055333167,0.02,41629.0,41613.0,2.42132521]
[1644055333168,0.02,41629.0,41614.0,0.19260422]
[1644055333369,0.02,41629.0,41616.0,0.3]
[1644055333569,0.02,41629.0,41617.0,0.26172135]
[1644055333869,0.21628177,41616.0,41613.0,0.5]
[1644055334068,0.3,41627.0,41605.0,0.02050809]
[1644055334372,0.3,41627.0,41607.0,0.00050537]
[1644055334567,0.3,41627.0,41610.0,0.02166286]
[1644055334769,0.02,41629.0,41626.0,0.04999999]
[1644055334969,0.0001,41631.0,41628.0,0.75]
[1644055335210,0.0001,41631.0,41627.0,0.17610096]
[1644055335211,0.07206309,41630.0,41627.0,0.17610096]
[1644055335412,0.07206309,41630.0,41622.0,0.20010472]
[1644055335413,0.40384109,41630.0,41622.0,0.20010472]
[1644055335611,0.07113219,41623.0,41615.0,0.55]
[1644055335810,0.07113219,41623.0,41615.0,0.5]
[1644055336011,0.00081695,41630.0,41615.0,0.5]
[1644055336210,0.19523142,41626.0,41615.0,0.5]
[1644055336616,0.19523142,41626.0,41615.0,0.01802104]
[1644055336617,0.00081701,41625.0,41615.0,0.01802104]
[1644055336816,0.05,41623.0,41615.0,0.01802104]
[1644055337016,0.05,41620.0,41615.0,0.01802104]
[1644055337213,0.379978,41619.0,41615.0,0.01802104]
[1644055337416,0.75,41618.0,41607.0,0.00081735]
[1644055337615,0.75,41618.0,41599.0,0.20382888]
[1644055337814,0.06802104,41616.0,41600.0,0.3]
[1644055338016,0.0482,41615.0,41600.0,0.3]
[1644055338213,0.05,41615.0,41600.0,0.04999999]
[1644055338412,0.06802104,41616.0,41601.0,0.3]
[1644055338612,0.06802104,41616.0,41601.0,0.23465999]
[1644055339062,0.249893,41612.0,41606.0,0.00079446]
[1644055339260,0.01802104,41616.0,41606.0,0.00079446]
[1644055339261,0.331778,41611.0,41606.0,0.00079446]
[1644055339460,0.331778,41610.0,41606.0,0.00079446]
[1644055339765,0.331778,41615.0,41607.0,2.22991899]
[1644055339961,0.331778,41615.0,41606.0,0.00079446]
[1644055339962,0.0702994,41611.0,41596.0,0.3633]
[1644055340161,0.0702994,41611.0,41606.0,0.00079447]
[1644055340362,0.0702994,41611.0,41607.0,0.09235]
[1644055340965,0.2614056,41609.0,41606.0,0.00079447]
[1644055341163,0.0482,41615.0,41607.0,0.331778]
[1644055341364,0.0482,41615.0,41607.0,0.00076842]
[1644055341564,0.01802104,41616.0,41607.0,0.00076842]
[1644055341765,0.331778,41614.0,41607.0,0.00076842]
[1644055341965,0.0482,41613.0,41607.0,0.00076842]
[1644055342164,0.331778,41612.0,41607.0,0.00076842]
[1644055342369,0.331778,41610.0,41595.0,0.04999999]
[1644055342609,0.0482,41611.0,41593.0,0.46331168]
[1644055342610,0.0482,41609.0,41607.0,0.00076841]
[1644055342807,0.5244001,41608.0,41607.0,0.00076841]
[1644055343606,0.5244001,41608.0,41602.0,0.02031265]
[1644055343807,0.5244001,41608.0,41605.0,0.00076843]
[1644055344807,0.06705144,41603.0,41600.0,0.02198621]
[1644055345010,0.06705144,41603.0,41601.0,0.331778]
[1644055345212,0.06705144,41603.0,41600.0,0.02198621]
[1644055345608,0.0482,41602.0,41600.0,0.02198621]
[1644055345809,0.331778,41601.0,41600.0,0.02198621]
[1644055346007,0.62517046,41601.0,41600.0,0.02198621]
[1644055346866,0.331778,41600.0,41595.0,0.0187299]
[1644055347272,0.33213141,41600.0,41595.0,0.0187299]
[1644055347466,0.331778,41598.0,41595.0,0.0195473]
[1644055347672,0.0482,41597.0,41595.0,0.0195473]
[1644055347866,0.39612111,41596.0,41595.0,0.0195473]
[1644055348066,0.44432111,41596.0,41595.0,0.0195473]
[1644055348467,0.44432111,41596.0,41595.0,0.0187299]
[1644055348868,0.44432111,41596.0,41593.0,0.00081742]
[1644055349470,0.379978,41596.0,41593.0,0.00081742]
[1644055349668,0.379978,41596.0,41590.0,0.01818864]
[1644055349669,0.0482,41596.0,41590.0,0.01818864]
[1644055349868,0.04855341,41596.0,41592.0,0.00081744]
[1644055350112,0.0482,41596.0,41592.0,0.00081744]
[1644055350606,0.07375455,41593.0,41592.0,0.00081744]
[1644055350807,0.00035341,41595.0,41589.0,0.26493339]
[1644055351007,0.04855341,41595.0,41592.0,0.00081744]
[1644055351206,0.0482,41595.0,41592.0,0.00081744]
[1644055351608,0.26056853,41594.0,41592.0,0.00081744]
[1644055351808,0.08134582,41593.0,41592.0,0.00081744]
[1644055352109,0.08134582,41593.0,41591.0,0.00081745]
[1644055352309,0.00035341,41593.0,41591.0,0.00081745]
[1644055352508,0.00035341,41594.0,41591.0,0.00081745]
[1644055352711,0.05,41601.0,41591.0,0.00081745]
[1644055352712,0.04465341,41600.0,41591.0,0.00081745]
[1644055352914,0.0443,41600.0,41591.0,0.00081745]
[1644055353109,0.0443,41600.0,41589.0,0.26493339]
[1644055353311,0.0443,41600.0,41593.0,0.00081742]
[1644055353512,0.06618633,41596.0,41593.0,0.00081742]
[1644055354156,0.24,41594.0,41593.0,0.00081742]
[1644055354356,0.571778,41594.0,41589.0,0.26493339]
[1644055354558,0.571778,41594.0,41592.0,0.00081744]
[1644055354559,0.24,41594.0,41592.0,0.00081744]
[1644055354857,0.331778,41593.0,41592.0,0.00081744]
[1644055355757,0.24,41594.0,41590.0,0.00081746]
[1644055356757,0.24,41594.0,41589.0,0.26493339]
[1644055356956,0.24,41594.0,41590.0,0.00081747]
[1644055357159,0.24,41594.0,41590.0,0.05081746]
[1644055357810,0.05,41600.0,41596.0,0.25371448]
[1644055358012,0.05,41600.0,41591.0,0.75]
[1644055358208,0.12701383,41600.0,41591.0,0.75]
[1644055358408,0.12701383,41600.0,41590.0,0.05081746]
[1644055358608,0.005,41598.0,41596.0,2.57786246]
[1644055359608,0.005,41598.0,41595.0,0.0008174]
[1644055359907,0.331778,41597.0,41595.0,0.0008174]
[1644055360308,0.005,41598.0,41591.0,0.22004585]
[1644055360509,0.08278251,41596.0,41594.0,0.00081742]
[1644055360907,0.005,41600.0,41594.0,0.00081742]
[1644055361108,0.331778,41599.0,41594.0,0.04581741]
[1644055361356,0.331778,41599.0,41594.0,0.00081742]
[1644055361558,0.005,41600.0,41591.0,0.04499999]
[1644055361757,0.005,41600.0,41594.0,0.00081741]
[1644055361957,0.331778,41599.0,41594.0,0.29409387]
[1644055362159,0.005,41600.0,41595.0,0.331778]
[1644055362560,0.005,41600.0,41596.0,2.24300892]
[1644055362761,0.005,41600.0,41591.0,0.06591235]
[1644055362958,0.22654933,41603.0,41591.0,0.06591235]
[1644055362959,0.331778,41602.0,41595.0,0.0008174]
[1644055363159,0.32654933,41603.0,41595.0,0.0008174]
[1644055363364,0.005,41596.0,41595.0,0.0008174]
[1644055363658,0.336778,41596.0,41595.0,0.0008174]
[1644055363858,0.005,41596.0,41595.0,0.0008174]
[1644055364058,0.005,41596.0,41591.0,0.06591235]
[1644055364261,0.21633352,41596.0,41593.0,0.00081742]
[1644055365110,0.21633352,41596.0,41590.0,0.26607683]
[1644055365307,0.45133352,41596.0,41592.0,0.00081744]
[1644055365506,0.24,41596.0,41592.0,0.00081744]
[1644055365709,0.24,41596.0,41593.0,0.331778]
[1644055366011,0.24,41596.0,41592.0,0.04581743]
[1644055366012,0.245,41596.0,41592.0,0.00081744]
[1644055366407,0.245,41596.0,41590.0,0.31107682]
[1644055366607,0.47962203,41596.0,41592.0,0.00081744]
[1644055367012,0.005,41593.0,41592.0,0.00081744]
[1644055367211,0.431078,41593.0,41592.0,0.00081744]
[1644055367414,0.431078,41593.0,41585.0,0.5]
[1644055367415,0.75,41592.0,41585.0,0.5]
[1644055367610,0.376078,41591.0,41585.0,0.5]
[1644055367812,0.005,41586.0,41585.0,0.4999]
[1644055368109,0.331778,41585.0,41581.0,0.02]
[1644055368310,0.0443,41584.0,41581.0,0.02]
[1644055368515,0.005,41582.0,41581.0,0.02]
[1644055368712,0.381078,41582.0,41581.0,0.02]
[1644055369266,0.381078,41582.0,41564.0,0.04499999]
[1644055369267,0.331778,41579.0,41564.0,0.05]
[1644055369466,0.331778,41579.0,41563.0,0.03]
[1644055369467,0.005,41565.0,41563.0,0.03]
[1644055369668,0.125338,41565.0,41563.0,0.03]
[1644055369865,0.0443,41564.0,41563.0,0.03]
[1644055370269,0.0443,41564.0,41563.0,0.29439904]
[1644055370867,0.120301,41577.0,41563.0,0.59617704]
[1644055371070,0.3,41580.0,41576.0,0.22098644]
[1644055371071,0.005,41580.0,41576.0,0.22098644]
[1644055371268,0.305,41580.0,41571.0,0.04499999]
[1644055371567,0.331778,41577.0,41571.0,0.04499999]
[1644055371765,0.08005191,41576.0,41568.0,0.04581772]
[1644055371965,0.08171859,41569.0,41568.0,0.00073306]
[1644055372167,0.4926933,41578.0,41568.0,0.04573305]
[1644055372364,0.4926933,41578.0,41575.0,0.25644747]
[1644055372365,0.3,41577.0,41575.0,0.25644747]
[1644055372611,0.2426933,41578.0,41571.0,0.04499999]
[1644055372810,0.21307851,41570.0,41568.0,0.04499999]
[1644055373208,0.07069901,41569.0,41568.0,0.04499999]
[1644055373615,0.22272727,41571.0,41570.0,0.21881294]
[1644055373810,0.27772727,41571.0,41563.0,0.02008728]
[1644055374413,0.07948245,41564.0,41563.0,0.02008728]
[1644055374811,0.07948245,41564.0,41563.0,0.25268185]
[1644055375010,0.07948245,41564.0,41563.0,0.23259457]
[1644055375414,0.07948245,41564.0,41558.0,0.02141469]
[1644055375415,0.981778,41562.0,41558.0,0.02141469]
[1644055375612,0.3,41561.0,41558.0,0.02141469]
[1644055375810,0.336778,41559.0,41558.0,0.02141469]
[1644055376011,0.386778,41559.0,41558.0,0.02141469]
[1644055376365,0.67241951,41559.0,41558.0,0.02141469]
[1644055376562,0.77241951,41559.0,41558.0,0.02141469]
[1644055376762,1.01241951,41559.0,41558.0,0.02141469]
[1644055377361,0.91241951,41559.0,41558.0,0.02141469]
[1644055377563,0.2843,41559.0,41554.0,0.26369488]
[1644055377764,0.04831613,41559.0,41558.0,0.04499999]
[1644055378064,0.04831613,41559.0,41558.0,0.37677799]
[1644055378463,0.04831613,41559.0,41558.0,0.64046827]
[1644055378867,0.04831613,41559.0,41558.0,0.74046827]
[1644055379065,0.005,41574.0,41573.0,0.20067025]
[1644055379265,0.16519854,41581.0,41573.0,0.20067025]
[1644055379465,0.26158337,41580.0,41573.0,0.20067025]
[1644055379666,0.005,41577.0,41575.0,0.04499999]
[1644055379866,0.005,41577.0,41573.0,0.20067025]
[1644055380121,0.00081757,41579.0,41573.0,0.20067025]
[1644055380310,0.005,41574.0,41570.0,0.04499999]